[Event "Titled Tuesday Blitz November 29 Early 2022"]
[White "Dudzinski, Pawel"]
[Black "Womacka, Mathias"]
[WhiteFideId "1117890"]
[BlackFideId "4611390"]
[WhiteElo "2086"]
[BlackElo "2378"]
[Result "0-1"]
[Round "07"]
[TimeControl "180+1"]
[Date "2022.11.30"]
[WhiteClock "0:00:06"]
[BlackClock "0:00:08"]

1. e4 {[%clk 0:02:55]}  c5 {[%clk 0:02:59]} 2. c4 {[%clk 0:02:55]}  Nc6 {[%clk 0:02:58]} 3. Nc3 {[%clk 0:02:55]}  g6 {[%clk 0:02:57]} 4. g3 {[%clk 0:02:56]}  Bg7 {[%clk 0:02:57]} 5. Bg2 {[%clk 0:02:56]}  e6 {[%clk 0:02:57]} 6. Nge2 {[%clk 0:02:57]}  Nge7 {[%clk 0:02:57]} 7. Rb1 {[%clk 0:02:57]}  O-O {[%clk 0:02:55]} 8. d3 {[%clk 0:02:58]}  d6 {[%clk 0:02:47]} 9. a3 {[%clk 0:02:58]}  a5 {[%clk 0:02:46]} 10. Nb5 {[%clk 0:02:57]}  d5 {[%clk 0:02:38]} 11. exd5 {[%clk 0:02:56]}  exd5 {[%clk 0:02:38]} 12. cxd5 {[%clk 0:02:56]}  Nxd5 {[%clk 0:02:36]} 13. O-O {[%clk 0:02:49]}  Be6 {[%clk 0:02:30]} 14. Nf4 {[%clk 0:02:46]}  Nxf4 {[%clk 0:02:29]} 15. Bxf4 {[%clk 0:02:47]}  Qd7 {[%clk 0:02:08]} 16. Nc7 {[%clk 0:02:36]}  Rad8 {[%clk 0:02:08]} 17. Nxe6 {[%clk 0:02:36]}  Qxe6 {[%clk 0:02:08]} 18. Re1 {[%clk 0:02:23]}  Qd7 {[%clk 0:02:06]} 19. Be3 {[%clk 0:02:04]}  b6 {[%clk 0:02:04]} 20. Qa4 {[%clk 0:02:03]}  Ne5 {[%clk 0:01:55]} 21. Qxd7 {[%clk 0:01:58]}  Rxd7 {[%clk 0:01:56]} 22. b4 {[%clk 0:01:44]}  axb4 {[%clk 0:01:33]} 23. axb4 {[%clk 0:01:44]}  Nxd3 {[%clk 0:01:34]} 24. Red1 {[%clk 0:01:44]}  c4 {[%clk 0:01:11]} 25. Bf1 {[%clk 0:01:44]}  b5 {[%clk 0:01:10]} 26. Bxd3 {[%clk 0:01:34]}  Rxd3 {[%clk 0:01:09]} 27. Rxd3 {[%clk 0:01:31]}  cxd3 {[%clk 0:01:10]} 28. Rc1 {[%clk 0:01:27]}  Rd8 {[%clk 0:01:09]} 29. Bd2 {[%clk 0:01:27]}  Bf8 {[%clk 0:01:06]} 30. Rc7 {[%clk 0:01:13]}  h5 {[%clk 0:00:58]} 31. h4 {[%clk 0:01:08]}  Rd4 {[%clk 0:00:44]} 32. Rc8 {[%clk 0:01:07]}  Rc4 {[%clk 0:00:44]} 33. Rd8 {[%clk 0:01:06]}  Kg7 {[%clk 0:00:41]} 34. Rxd3 {[%clk 0:01:02]}  Bxb4 {[%clk 0:00:41]} 35. Bxb4 {[%clk 0:00:55]}  Rxb4 {[%clk 0:00:42]} 36. Rd7 {[%clk 0:00:48]}  Rc4 {[%clk 0:00:39]} 37. Rb7 {[%clk 0:00:48]}  b4 {[%clk 0:00:40]} 38. Kg2 {[%clk 0:00:49]}  Kf6 {[%clk 0:00:39]} 39. Kh3 {[%clk 0:00:39]}  Ke6 {[%clk 0:00:38]} 40. Kg2 {[%clk 0:00:39]}  f6 {[%clk 0:00:30]} 41. Rb6+ {[%clk 0:00:38]}  Ke5 {[%clk 0:00:26]} 42. Kh3 {[%clk 0:00:38]}  g5 {[%clk 0:00:22]} 43. Rb5+ {[%clk 0:00:33]}  Kd4 {[%clk 0:00:21]} 44. hxg5 {[%clk 0:00:34]}  fxg5 {[%clk 0:00:21]} 45. Rxg5 {[%clk 0:00:33]}  b3 {[%clk 0:00:20]} 46. Rxh5 {[%clk 0:00:14]}  Rb4 {[%clk 0:00:20]} 47. Kg4 {[%clk 0:00:13]}  b2 {[%clk 0:00:19]} 48. Rh1 {[%clk 0:00:13]}  b1=Q {[%clk 0:00:19]} 49. Rxb1 {[%clk 0:00:12]}  Rxb1 {[%clk 0:00:20]} 50. Kf5 {[%clk 0:00:11]}  Kd5 {[%clk 0:00:19]} 51. f4 {[%clk 0:00:09]}  Kd6 {[%clk 0:00:19]} 52. g4 {[%clk 0:00:09]}  Ke7 {[%clk 0:00:19]} 53. Kg6 {[%clk 0:00:08]}  Kf8 {[%clk 0:00:16]} 54. f5 {[%clk 0:00:08]}  Kg8 {[%clk 0:00:12]} 55. g5 {[%clk 0:00:09]}  Rb6+ {[%clk 0:00:11]} 56. f6 {[%clk 0:00:07]}  Rb5 {[%clk 0:00:12]} 57. Kh6 {[%clk 0:00:07]}  Kf7 {[%clk 0:00:10]} 58. Kh7 {[%clk 0:00:05]}  Rxg5 {[%clk 0:00:08]} 59. Kh8 {[%clk 0:00:05]}  Rg1 {[%clk 0:00:08]} 60. Kh7 {[%clk 0:00:06]}  Kxf6 {[%clk 0:00:08]} 61. Kh8 {[%clk 0:00:06]}  Kf7 {[%clk 0:00:08]} 0-1


[Site "https://www.chess.com"]

[Event "Titled Tuesday Blitz November 29 Early 2022"]
[White "Dzhaparov, Medet"]
[Black "Nepo"]
[WhiteFideId "13803689"]
[WhiteElo "1702"]
[BlackElo "2129"]
[Result "0-1"]
[Round "07"]
[TimeControl "180+1"]
[Date "2022.11.30"]
[WhiteClock "0:00:17"]
[BlackClock "0:00:31"]

1. e4 {[%clk 0:03:00]}  e5 {[%clk 0:02:58]} 2. Nf3 {[%clk 0:02:59]}  Nf6 {[%clk 0:02:55]} 3. Nxe5 {[%clk 0:02:59]}  d6 {[%clk 0:02:54]} 4. Nf3 {[%clk 0:02:57]}  Nxe4 {[%clk 0:02:52]} 5. d4 {[%clk 0:02:57]}  d5 {[%clk 0:02:46]} 6. Bd3 {[%clk 0:02:57]}  Be7 {[%clk 0:02:42]} 7. O-O {[%clk 0:02:56]}  Nc6 {[%clk 0:02:39]} 8. Re1 {[%clk 0:02:55]}  Bf5 {[%clk 0:02:37]} 9. c3 {[%clk 0:02:53]}  O-O {[%clk 0:02:33]} 10. Bf4 {[%clk 0:02:53]}  Bd6 {[%clk 0:02:30]} 11. Bxd6 {[%clk 0:02:49]}  Qxd6 {[%clk 0:02:31]} 12. Nbd2 {[%clk 0:02:48]}  Rae8 {[%clk 0:02:25]} 13. Qc2 {[%clk 0:02:47]}  Qf4 {[%clk 0:01:19]} 14. b4 {[%clk 0:01:15]}  a6 {[%clk 0:00:59]} 15. Rad1 {[%clk 0:00:36]}  Re6 {[%clk 0:00:45]} 16. h3 {[%clk 0:00:29]}  Rfe8 {[%clk 0:00:42]} 17. Kf1 {[%clk 0:00:22]}  Bg6 {[%clk 0:00:35]} 18. Re3 {[%clk 0:00:16]}  Ng3+ {[%clk 0:00:32]} 19. Kg1 {[%clk 0:00:15]}  Rxe3 {[%clk 0:00:31]} 20. fxe3 {[%clk 0:00:14]}  Qxe3+ {[%clk 0:00:32]} 21. Kh2 {[%clk 0:00:15]}  Qf4 {[%clk 0:00:30]} 22. Qc1 {[%clk 0:00:16]}  Ne2+ {[%clk 0:00:30]} 23. Kh1 {[%clk 0:00:16]}  Nxc1 {[%clk 0:00:30]} 24. Rxc1 {[%clk 0:00:17]}  Bxd3 {[%clk 0:00:31]} 0-1


[Site "https://www.chess.com"]

[Event "Titled Tuesday Blitz November 29 Early 2022"]
[White "Fabris, Alberto"]
[Black "Ravot, Sylvain"]
[WhiteFideId "801348"]
[BlackFideId "627763"]
[WhiteElo "2138"]
[BlackElo "2195"]
[Result "0-1"]
[Round "07"]
[TimeControl "180+1"]
[Date "2022.11.30"]
[WhiteClock "0:00:34"]
[BlackClock "0:00:05"]

1. d4 {[%clk 0:03:00]}  d5 {[%clk 0:02:51]} 2. Nf3 {[%clk 0:03:00]}  Nf6 {[%clk 0:02:50]} 3. Bf4 {[%clk 0:03:00]}  c5 {[%clk 0:02:51]} 4. e3 {[%clk 0:02:58]}  Nc6 {[%clk 0:02:51]} 5. c3 {[%clk 0:02:57]}  Qb6 {[%clk 0:02:52]} 6. Qb3 {[%clk 0:02:56]}  c4 {[%clk 0:02:52]} 7. Qxb6 {[%clk 0:02:54]}  axb6 {[%clk 0:02:53]} 8. Nbd2 {[%clk 0:02:49]}  b5 {[%clk 0:02:45]} 9. Ne5 {[%clk 0:02:40]}  Bf5 {[%clk 0:02:17]} 10. Be2 {[%clk 0:02:38]}  e6 {[%clk 0:01:51]} 11. O-O {[%clk 0:02:35]}  b4 {[%clk 0:01:48]} 12. cxb4 {[%clk 0:02:31]}  Bxb4 {[%clk 0:01:34]} 13. Ndf3 {[%clk 0:02:27]}  Nd7 {[%clk 0:01:14]} 14. a3 {[%clk 0:02:21]}  Be7 {[%clk 0:01:11]} 15. Rac1 {[%clk 0:02:16]}  f6 {[%clk 0:00:57]} 16. Nxd7 {[%clk 0:02:07]}  Kxd7 {[%clk 0:00:58]} 17. h3 {[%clk 0:02:04]}  b5 {[%clk 0:00:53]} 18. g4 {[%clk 0:02:02]}  Bg6 {[%clk 0:00:49]} 19. Bg3 {[%clk 0:02:00]}  h6 {[%clk 0:00:46]} 20. Nd2 {[%clk 0:01:53]}  Bd6 {[%clk 0:00:33]} 21. f4 {[%clk 0:01:46]}  Rhb8 {[%clk 0:00:31]} 22. Kg2 {[%clk 0:01:41]}  b4 {[%clk 0:00:31]} 23. axb4 {[%clk 0:01:39]}  Rxb4 {[%clk 0:00:29]} 24. f5 {[%clk 0:01:38]}  Rxb2 {[%clk 0:00:14]} 25. Be1 {[%clk 0:01:25]}  Bf7 {[%clk 0:00:06]} 26. Bf3 {[%clk 0:01:23]}  Raa2 {[%clk 0:00:05]} 27. Rf2 {[%clk 0:01:22]}  Nb4 {[%clk 0:00:04]} 28. Rb1 {[%clk 0:01:15]}  Nd3 {[%clk 0:00:04]} 29. Rxb2 {[%clk 0:01:13]}  Rxb2 {[%clk 0:00:04]} 30. fxe6+ {[%clk 0:01:10]}  Bxe6 {[%clk 0:00:04]} 31. Nxc4 {[%clk 0:00:55]}  dxc4 {[%clk 0:00:04]} 32. Rxb2 {[%clk 0:00:52]}  Nxb2 {[%clk 0:00:05]} 33. Bc3 {[%clk 0:00:51]}  Nd3 {[%clk 0:00:05]} 34. e4 {[%clk 0:00:50]}  Bb4 {[%clk 0:00:03]} 35. Bxb4 {[%clk 0:00:47]}  Nxb4 {[%clk 0:00:04]} 36. d5 {[%clk 0:00:47]}  Bf7 {[%clk 0:00:04]} 37. Kf2 {[%clk 0:00:45]}  c3 {[%clk 0:00:04]} 38. Ke3 {[%clk 0:00:44]}  Kd6 {[%clk 0:00:01]} 39. Be2 {[%clk 0:00:39]}  Kc5 {[%clk 0:00:01]} 40. h4 {[%clk 0:00:39]}  Be8 {[%clk 0:00:01]} 41. g5 {[%clk 0:00:38]}  hxg5 {[%clk 0:00:01]} 42. hxg5 {[%clk 0:00:38]}  Ba4 {[%clk 0:00:02]} 43. gxf6 {[%clk 0:00:37]}  gxf6 {[%clk 0:00:01]} 44. Kf4 {[%clk 0:00:37]}  Bb3 {[%clk 0:00:01]} 45. Kf5 {[%clk 0:00:36]}  c2 {[%clk 0:00:02]} 46. Kxf6 {[%clk 0:00:36]}  c1=Q {[%clk 0:00:02]} 47. e5 {[%clk 0:00:35]}  Qf4+ {[%clk 0:00:02]} 48. Ke6 {[%clk 0:00:35]}  Bxd5+ {[%clk 0:00:03]} 49. Ke7 {[%clk 0:00:35]}  Qxe5+ {[%clk 0:00:03]} 50. Kf8 {[%clk 0:00:35]}  Qxe2 {[%clk 0:00:04]} 51. Kg7 {[%clk 0:00:35]}  Bc4 {[%clk 0:00:04]} 52. Kg6 {[%clk 0:00:34]}  Na2 {[%clk 0:00:05]} 0-1


[Site "https://www.chess.com"]

[Event "Titled Tuesday Blitz November 29 Early 2022"]
[White "Fedoseev, Vladimir"]
[Black "Santos Ruiz, Miguel"]
[WhiteFideId "24130737"]
[BlackFideId "22291482"]
[WhiteElo "3022"]
[BlackElo "2868"]
[Result "1-0"]
[Round "07"]
[TimeControl "180+1"]
[Date "2022.11.30"]
[WhiteClock "0:00:12"]
[BlackClock "0:00:05"]

1. e4 {[%clk 0:01:58]}  e5 {[%clk 0:02:57]} 2. Nf3 {[%clk 0:01:58]}  Nc6 {[%clk 0:02:57]} 3. Bc4 {[%clk 0:01:58]}  Bc5 {[%clk 0:02:57]} 4. d3 {[%clk 0:01:57]}  Nf6 {[%clk 0:02:57]} 5. O-O {[%clk 0:01:56]}  d6 {[%clk 0:02:55]} 6. a4 {[%clk 0:01:56]}  a6 {[%clk 0:02:52]} 7. c3 {[%clk 0:01:51]}  Ba7 {[%clk 0:02:52]} 8. Re1 {[%clk 0:01:48]}  h6 {[%clk 0:02:52]} 9. Be3 {[%clk 0:01:47]}  Bxe3 {[%clk 0:02:43]} 10. Rxe3 {[%clk 0:01:48]}  O-O {[%clk 0:02:43]} 11. Nbd2 {[%clk 0:01:44]}  Re8 {[%clk 0:02:31]} 12. h3 {[%clk 0:01:38]}  Be6 {[%clk 0:02:22]} 13. Qe1 {[%clk 0:01:33]}  d5 {[%clk 0:01:40]} 14. exd5 {[%clk 0:01:21]}  Nxd5 {[%clk 0:01:41]} 15. Bxd5 {[%clk 0:01:20]}  Qxd5 {[%clk 0:01:42]} 16. b4 {[%clk 0:00:58]}  Rad8 {[%clk 0:01:36]} 17. c4 {[%clk 0:00:49]}  Qd6 {[%clk 0:01:29]} 18. b5 {[%clk 0:00:48]}  Nb4 {[%clk 0:01:18]} 19. Ne4 {[%clk 0:00:47]}  Qf8 {[%clk 0:01:13]} 20. Qc3 {[%clk 0:00:47]}  f5 {[%clk 0:00:56]} 21. Ned2 {[%clk 0:00:46]}  f4 {[%clk 0:00:56]} 22. Rxe5 {[%clk 0:00:43]}  Nxd3 {[%clk 0:00:57]} 23. Re4 {[%clk 0:00:39]}  Qc5 {[%clk 0:00:51]} 24. Nd4 {[%clk 0:00:38]}  Bf5 {[%clk 0:00:13]} 25. N2b3 {[%clk 0:00:14]}  Qf8 {[%clk 0:00:09]} 26. Rxe8 {[%clk 0:00:14]}  Rxe8 {[%clk 0:00:09]} 27. Rd1 {[%clk 0:00:14]}  Nc5 {[%clk 0:00:07]} 28. Nxf5 {[%clk 0:00:13]}  Qxf5 {[%clk 0:00:07]} 29. Nxc5 {[%clk 0:00:12]}  Qxc5 {[%clk 0:00:08]} 30. Rd7 {[%clk 0:00:11]}  Re7 {[%clk 0:00:08]} 31. Rd8+ {[%clk 0:00:11]}  Kf7 {[%clk 0:00:08]} 32. Rd5 {[%clk 0:00:11]}  Qb6 {[%clk 0:00:06]} 33. Rf5+ {[%clk 0:00:11]}  Kg8 {[%clk 0:00:07]} 34. Rxf4 {[%clk 0:00:12]}  axb5 {[%clk 0:00:07]} 35. axb5 {[%clk 0:00:11]}  Qe6 {[%clk 0:00:07]} 36. Qf3 {[%clk 0:00:11]}  b6 {[%clk 0:00:06]} 37. Kh2 {[%clk 0:00:11]}  Qe5 {[%clk 0:00:05]} 38. g3 {[%clk 0:00:12]}  Kh7 {[%clk 0:00:04]} 39. Kg2 {[%clk 0:00:12]}  Qd6 {[%clk 0:00:04]} 40. h4 {[%clk 0:00:10]}  Re5 {[%clk 0:00:03]} 41. h5 {[%clk 0:00:11]}  Qc5 {[%clk 0:00:01]} 42. g4 {[%clk 0:00:09]}  Qd6 {[%clk 0:00:01]} 43. Rf5 {[%clk 0:00:08]}  Rxf5 {[%clk 0:00:01]} 44. Qxf5+ {[%clk 0:00:09]}  Kg8 {[%clk 0:00:01]} 45. Qd5+ {[%clk 0:00:09]}  Qxd5+ {[%clk 0:00:02]} 46. cxd5 {[%clk 0:00:10]}  Kf7 {[%clk 0:00:02]} 47. Kf3 {[%clk 0:00:11]}  Kf6 {[%clk 0:00:03]} 48. Ke4 {[%clk 0:00:11]}  Kg5 {[%clk 0:00:04]} 49. f3 {[%clk 0:00:12]}  Kh4 {[%clk 0:00:04]} 50. Kf5 {[%clk 0:00:12]}  Kh3 {[%clk 0:00:05]} 51. Kg6 {[%clk 0:00:12]} 1-0


[Site "https://www.chess.com"]

[Event "Titled Tuesday Blitz November 29 Early 2022"]
[White "Fernandez Hernandez, Gerardo"]
[Black "Grabinsky, Vladimir"]
[WhiteFideId "2207400"]
[BlackFideId "14107074"]
[WhiteElo "2217"]
[BlackElo "2198"]
[Result "0-1"]
[Round "07"]
[TimeControl "180+1"]
[Date "2022.11.30"]
[WhiteClock "0:00:08"]
[BlackClock "0:00:26"]

1. e4 {[%clk 0:03:00]}  c5 {[%clk 0:02:59]} 2. d3 {[%clk 0:02:59]}  Nc6 {[%clk 0:02:59]} 3. g3 {[%clk 0:02:59]}  g6 {[%clk 0:02:55]} 4. Bg2 {[%clk 0:02:59]}  Bg7 {[%clk 0:02:56]} 5. f4 {[%clk 0:02:59]}  d6 {[%clk 0:02:55]} 6. Nf3 {[%clk 0:03:00]}  e5 {[%clk 0:02:55]} 7. f5 {[%clk 0:02:59]}  gxf5 {[%clk 0:02:53]} 8. Nh4 {[%clk 0:02:58]}  f4 {[%clk 0:02:52]} 9. O-O {[%clk 0:02:56]}  Bf6 {[%clk 0:02:34]} 10. Qh5 {[%clk 0:02:45]}  Bxh4 {[%clk 0:02:32]} 11. gxh4 {[%clk 0:02:45]}  Nf6 {[%clk 0:02:30]} 12. Qd1 {[%clk 0:02:26]}  Rg8 {[%clk 0:02:26]} 13. Kh1 {[%clk 0:02:25]}  Bg4 {[%clk 0:02:20]} 14. Qe1 {[%clk 0:02:17]}  Nd4 {[%clk 0:02:18]} 15. Na3 {[%clk 0:02:16]}  Qd7 {[%clk 0:02:10]} 16. c3 {[%clk 0:02:15]}  Nc6 {[%clk 0:02:02]} 17. Nc4 {[%clk 0:02:01]}  O-O-O {[%clk 0:02:01]} 18. b4 {[%clk 0:01:55]}  cxb4 {[%clk 0:02:00]} 19. cxb4 {[%clk 0:01:55]}  Kb8 {[%clk 0:01:58]} 20. b5 {[%clk 0:01:36]}  Nd4 {[%clk 0:01:58]} 21. Bb2 {[%clk 0:01:19]}  f3 {[%clk 0:01:57]} 22. Bxd4 {[%clk 0:01:14]}  fxg2+ {[%clk 0:01:57]} 23. Kxg2 {[%clk 0:01:15]}  Bh3+ {[%clk 0:01:51]} 24. Kh1 {[%clk 0:01:15]}  Bg2+ {[%clk 0:01:35]} 25. Kg1 {[%clk 0:01:13]}  Bf3+ {[%clk 0:01:30]} 26. Kf2 {[%clk 0:01:06]}  Qh3 {[%clk 0:01:07]} 27. Bxa7+ {[%clk 0:01:03]}  Kxa7 {[%clk 0:01:02]} 28. Qe3+ {[%clk 0:01:00]}  Kb8 {[%clk 0:00:59]} 29. Qxf3 {[%clk 0:00:59]}  Qxh2+ {[%clk 0:00:58]} 30. Ke1 {[%clk 0:00:54]}  Nh5 {[%clk 0:00:49]} 31. Qxh5 {[%clk 0:00:42]}  Rg2 {[%clk 0:00:42]} 32. b6 {[%clk 0:00:19]}  Qg3+ {[%clk 0:00:41]} 33. Kd1 {[%clk 0:00:17]}  Qxd3+ {[%clk 0:00:39]} 34. Ke1 {[%clk 0:00:15]}  Qxc4 {[%clk 0:00:30]} 35. Qf3 {[%clk 0:00:10]}  Qb4+ {[%clk 0:00:27]} 36. Kd1 {[%clk 0:00:08]}  Qd2# {[%clk 0:00:26]} 0-1


[Site "https://www.chess.com"]

[Event "Titled Tuesday Blitz November 29 Early 2022"]
[White "Fiedorek, Michal"]
[Black "Cappelletto, Joshuaede"]
[WhiteFideId "1199528"]
[BlackFideId "2824383"]
[WhiteElo "2201"]
[BlackElo "2237"]
[Result "0-1"]
[Round "07"]
[TimeControl "180+1"]
[Date "2022.11.30"]
[WhiteClock "0:01:16"]
[BlackClock "0:01:19"]

1. e4 {[%clk 0:03:00]}  c5 {[%clk 0:02:58]} 2. Nf3 {[%clk 0:03:00]}  d6 {[%clk 0:02:59]} 3. d4 {[%clk 0:03:01]}  cxd4 {[%clk 0:02:59]} 4. Nxd4 {[%clk 0:03:02]}  Nf6 {[%clk 0:03:00]} 5. Nc3 {[%clk 0:03:03]}  g6 {[%clk 0:03:00]} 6. Be3 {[%clk 0:03:02]}  Bg7 {[%clk 0:02:59]} 7. f3 {[%clk 0:03:02]}  O-O {[%clk 0:02:59]} 8. Qd2 {[%clk 0:03:02]}  Nc6 {[%clk 0:03:00]} 9. g4 {[%clk 0:03:02]}  Be6 {[%clk 0:02:57]} 10. O-O-O {[%clk 0:02:57]}  Nxd4 {[%clk 0:02:55]} 11. Bxd4 {[%clk 0:02:58]}  Qa5 {[%clk 0:02:55]} 12. a3 {[%clk 0:02:59]}  Rfc8 {[%clk 0:02:42]} 13. h4 {[%clk 0:02:58]}  h5 {[%clk 0:02:41]} 14. gxh5 {[%clk 0:02:55]}  Qxh5 {[%clk 0:02:39]} 15. Be2 {[%clk 0:02:50]}  Rab8 {[%clk 0:01:56]} 16. f4 {[%clk 0:02:47]}  Bg4 {[%clk 0:01:54]} 17. e5 {[%clk 0:02:41]}  Bxe2 {[%clk 0:01:49]} 18. Nxe2 {[%clk 0:02:11]}  dxe5 {[%clk 0:01:38]} 19. fxe5 {[%clk 0:01:56]}  Bh6 {[%clk 0:01:27]} 20. Be3 {[%clk 0:01:31]}  Ne4 {[%clk 0:01:20]} 21. Qd4 {[%clk 0:01:16]}  Qxe2 {[%clk 0:01:19]} 22. Bxh6 {[%clk 0:01:16]}  Qxc2# {[%clk 0:01:19]} 0-1


[Site "https://www.chess.com"]

[Event "Titled Tuesday Blitz November 29 Early 2022"]
[White "Flis, Pawel"]
[Black "Zaloznyy, Mike"]
[WhiteFideId "1112864"]
[BlackFideId "2023075"]
[WhiteElo "1817"]
[BlackElo "2126"]
[Result "1-0"]
[Round "07"]
[TimeControl "180+1"]
[Date "2022.11.30"]
[WhiteClock "0:00:05"]
[BlackClock "0:00:04"]

1. e4 {[%clk 0:02:53]}  c6 {[%clk 0:02:59]} 2. d4 {[%clk 0:02:53]}  d5 {[%clk 0:02:59]} 3. Nc3 {[%clk 0:02:52]}  dxe4 {[%clk 0:02:59]} 4. Nxe4 {[%clk 0:02:52]}  Nf6 {[%clk 0:03:00]} 5. Nxf6+ {[%clk 0:02:52]}  exf6 {[%clk 0:03:01]} 6. Bd3 {[%clk 0:02:52]}  Bd6 {[%clk 0:02:59]} 7. Qh5 {[%clk 0:02:51]}  g6 {[%clk 0:02:39]} 8. Qh6 {[%clk 0:02:51]}  Qe7+ {[%clk 0:02:13]} 9. Ne2 {[%clk 0:02:48]}  Bg4 {[%clk 0:02:06]} 10. Qg7 {[%clk 0:02:23]}  Rf8 {[%clk 0:01:52]} 11. Bh6 {[%clk 0:02:19]}  Bxe2 {[%clk 0:01:41]} 12. Bxe2 {[%clk 0:02:16]}  Nd7 {[%clk 0:01:41]} 13. Qxh7 {[%clk 0:02:10]}  O-O-O {[%clk 0:01:40]} 14. Bxf8 {[%clk 0:02:09]}  Nxf8 {[%clk 0:01:40]} 15. Qh3+ {[%clk 0:02:02]}  f5 {[%clk 0:01:39]} 16. Qe3 {[%clk 0:01:56]}  Qh4 {[%clk 0:01:32]} 17. O-O-O {[%clk 0:01:50]}  Bf4 {[%clk 0:01:31]} 18. g3 {[%clk 0:01:40]}  Bxe3+ {[%clk 0:01:31]} 19. fxe3 {[%clk 0:01:41]}  Qe4 {[%clk 0:01:30]} 20. Kd2 {[%clk 0:01:31]}  Ne6 {[%clk 0:01:22]} 21. Rhe1 {[%clk 0:01:19]}  c5 {[%clk 0:01:16]} 22. c3 {[%clk 0:01:16]}  cxd4 {[%clk 0:01:16]} 23. exd4 {[%clk 0:01:17]}  Qd5 {[%clk 0:01:13]} 24. b3 {[%clk 0:01:12]}  Nc5 {[%clk 0:01:11]} 25. Bc4 {[%clk 0:00:53]}  Ne4+ {[%clk 0:01:10]} 26. Kc2 {[%clk 0:00:51]}  Qa5 {[%clk 0:01:09]} 27. b4 {[%clk 0:00:46]}  Qc7 {[%clk 0:01:02]} 28. Kb3 {[%clk 0:00:38]}  Nxc3 {[%clk 0:00:54]} 29. Rc1 {[%clk 0:00:32]}  b5 {[%clk 0:00:43]} 30. Rxc3 {[%clk 0:00:31]}  Kb8 {[%clk 0:00:37]} 31. Bxb5 {[%clk 0:00:28]}  Qb6 {[%clk 0:00:36]} 32. Rc5 {[%clk 0:00:19]}  Rxd4 {[%clk 0:00:35]} 33. Re8+ {[%clk 0:00:19]}  Rd8 {[%clk 0:00:33]} 34. Re7 {[%clk 0:00:16]}  Qd6 {[%clk 0:00:28]} 35. Rcc7 {[%clk 0:00:14]}  Qd1+ {[%clk 0:00:27]} 36. Ka3 {[%clk 0:00:12]}  Qf3+ {[%clk 0:00:22]} 37. Ka4 {[%clk 0:00:10]}  Rd6 {[%clk 0:00:12]} 38. Rxa7 {[%clk 0:00:08]}  Rb6 {[%clk 0:00:10]} 39. Rad7 {[%clk 0:00:07]}  Qa8+ {[%clk 0:00:06]} 40. Kb3 {[%clk 0:00:06]}  Qf3+ {[%clk 0:00:06]} 41. Ka4 {[%clk 0:00:05]}  Qa8+ {[%clk 0:00:04]} 42. Kb3 {[%clk 0:00:05]} 1-0


[Site "https://www.chess.com"]

[Event "Titled Tuesday Blitz November 29 Early 2022"]
[White "Gatterer, Florian"]
[Black "Zacurdajev, Dmitry"]
[WhiteFideId "811688"]
[BlackFideId "4196309"]
[WhiteElo "2218"]
[BlackElo "2179"]
[Result "1-0"]
[Round "07"]
[TimeControl "180+1"]
[Date "2022.11.30"]
[WhiteClock "0:00:14"]
[BlackClock "0:00:07"]

1. c4 {[%clk 0:02:57]}  Nf6 {[%clk 0:02:58]} 2. Nc3 {[%clk 0:02:53]}  e6 {[%clk 0:02:59]} 3. Nf3 {[%clk 0:02:52]}  d5 {[%clk 0:03:00]} 4. e3 {[%clk 0:02:52]}  Be7 {[%clk 0:02:59]} 5. b3 {[%clk 0:02:52]}  O-O {[%clk 0:02:59]} 6. Bb2 {[%clk 0:02:53]}  c5 {[%clk 0:02:59]} 7. cxd5 {[%clk 0:02:53]}  Nxd5 {[%clk 0:02:56]} 8. Nxd5 {[%clk 0:02:48]}  Qxd5 {[%clk 0:02:46]} 9. Bc4 {[%clk 0:02:47]}  Qh5 {[%clk 0:02:43]} 10. g4 {[%clk 0:02:46]}  Qh6 {[%clk 0:02:28]} 11. Qe2 {[%clk 0:02:38]}  Nc6 {[%clk 0:02:23]} 12. h4 {[%clk 0:02:37]}  Nb4 {[%clk 0:02:03]} 13. O-O-O {[%clk 0:02:26]}  Nxa2+ {[%clk 0:01:47]} 14. Kb1 {[%clk 0:02:26]}  Nb4 {[%clk 0:01:48]} 15. h5 {[%clk 0:02:21]}  f6 {[%clk 0:01:31]} 16. g5 {[%clk 0:02:11]}  fxg5 {[%clk 0:01:31]} 17. Ne5 {[%clk 0:02:11]}  Qf6 {[%clk 0:01:14]} 18. f4 {[%clk 0:02:02]}  Qf5+ {[%clk 0:00:52]} 19. e4 {[%clk 0:01:52]}  Qxf4 {[%clk 0:00:52]} 20. Rdf1 {[%clk 0:01:52]}  Qg3 {[%clk 0:00:49]} 21. Rxf8+ {[%clk 0:01:41]}  Bxf8 {[%clk 0:00:50]} 22. h6 {[%clk 0:01:18]}  Nc6 {[%clk 0:00:35]} 23. Nxc6 {[%clk 0:01:06]}  bxc6 {[%clk 0:00:30]} 24. hxg7 {[%clk 0:01:05]}  Bxg7 {[%clk 0:00:30]} 25. Qh5 {[%clk 0:01:05]}  Bxb2 {[%clk 0:00:25]} 26. Qxh7+ {[%clk 0:01:04]}  Kf8 {[%clk 0:00:25]} 27. Rf1+ {[%clk 0:00:44]}  Ke8 {[%clk 0:00:26]} 28. Kxb2 {[%clk 0:00:44]}  Qe5+ {[%clk 0:00:25]} 29. Ka2 {[%clk 0:00:42]}  Qd6 {[%clk 0:00:14]} 30. Qh8+ {[%clk 0:00:33]}  Ke7 {[%clk 0:00:14]} 31. Qg7+ {[%clk 0:00:24]}  Ke8 {[%clk 0:00:14]} 32. Qg8+ {[%clk 0:00:25]}  Kd7 {[%clk 0:00:10]} 33. Rf7+ {[%clk 0:00:25]}  Qe7 {[%clk 0:00:10]} 34. Rxe7+ {[%clk 0:00:24]}  Kxe7 {[%clk 0:00:11]} 35. Qxg5+ {[%clk 0:00:23]}  Kd6 {[%clk 0:00:11]} 36. e5+ {[%clk 0:00:23]}  Kc7 {[%clk 0:00:11]} 37. Qg7+ {[%clk 0:00:23]}  Kb6 {[%clk 0:00:11]} 38. Qe7 {[%clk 0:00:22]}  a5 {[%clk 0:00:10]} 39. Ka3 {[%clk 0:00:21]}  a4 {[%clk 0:00:08]} 40. bxa4 {[%clk 0:00:21]}  Bb7 {[%clk 0:00:09]} 41. Bxe6 {[%clk 0:00:17]}  Rh8 {[%clk 0:00:07]} 42. Bc4 {[%clk 0:00:17]}  Rh3+ {[%clk 0:00:05]} 43. Kb2 {[%clk 0:00:15]}  Rh2 {[%clk 0:00:06]} 44. Qd8+ {[%clk 0:00:15]}  Ka7 {[%clk 0:00:07]} 45. e6 {[%clk 0:00:14]} 1-0


[Site "https://www.chess.com"]